{"text_format":"1","workbook":"xlsx","n_sheets":3,"sheets":["опросник","результаты","Лист3"],"not_rendered":{"charts":0,"images":1,"macros":1,"external_links":0,"defined_names":1,"comments":0,"pivot_tables":0},"unopened":[],"bounds":{"document_bytes":16777216,"sheet_cells":100000,"rows_first":2000,"rows_last":500,"rows_between":2000,"halvings":0,"cell_chars":16384,"cell_head_chars":4096},"cells_cut":0,"cells_raw":0,"read":"whole","date_system":"1900"}

{"sheet":"опросник","index":0,"n_rows":590,"n_cols":5,"rows_kept":590,"cut":false,"hidden":false,"merged":[[25,2,25,3],[26,0,27,0],[29,0,31,0],[32,0,34,0],[35,0,37,0],[38,0,40,0],[41,0,43,0],[44,0,46,0],[47,0,49,0],[50,0,52,0],[53,0,55,0],[56,0,58,0],[59,0,61,0],[62,0,64,0],[65,0,67,0],[68,0,70,0],[71,0,73,0],[74,0,76,0],[77,0,79,0],[80,0,82,0],[83,0,85,0],[86,0,88,0],[89,0,91,0],[92,0,94,0],[95,0,97,0],[98,0,100,0],[101,0,103,0],[104,0,106,0],[107,0,109,0],[110,0,112,0],[113,0,115,0],[116,0,118,0],[119,0,121,0],[122,0,124,0],[125,0,127,0],[128,0,130,0],[131,0,133,0],[134,0,136,0],[137,0,139,0],[140,0,142,0],[143,0,145,0],[146,0,148,0],[149,0,151,0],[152,0,154,0],[155,0,157,0],[158,0,160,0],[161,0,163,0],[164,0,166,0],[167,0,169,0],[170,0,172,0],[173,0,175,0],[176,0,178,0],[179,0,181,0],[182,0,184,0],[185,0,187,0],[188,0,190,0],[191,0,193,0],[194,0,196,0],[197,0,199,0],[200,0,202,0],[203,0,205,0],[206,0,208,0],[209,0,211,0],[212,0,214,0],[215,0,217,0],[218,0,220,0],[221,0,223,0],[224,0,226,0],[227,0,229,0],[230,0,232,0],[233,0,235,0],[236,0,238,0],[239,0,241,0],[242,0,244,0],[245,0,247,0],[248,0,250,0],[251,0,253,0],[254,0,256,0],[257,0,259,0],[260,0,262,0],[263,0,265,0],[266,0,268,0],[269,0,271,0],[272,0,274,0],[275,0,277,0],[278,0,280,0],[281,0,283,0],[284,0,286,0],[287,0,289,0],[290,0,292,0],[293,0,295,0],[296,0,298,0],[299,0,301,0],[302,0,304,0],[305,0,307,0],[308,0,310,0],[311,0,313,0],[314,0,316,0],[317,0,319,0],[320,0,322,0],[323,0,325,0],[326,0,328,0],[329,0,331,0],[332,0,334,0],[335,0,337,0],[338,0,340,0],[341,0,343,0],[344,0,346,0],[347,0,349,0],[350,0,352,0],[353,0,355,0],[356,0,358,0],[359,0,361,0],[362,0,364,0],[365,0,367,0],[368,0,370,0],[371,0,373,0],[374,0,376,0],[377,0,379,0],[380,0,382,0],[383,0,385,0],[386,0,388,0],[389,0,391,0],[392,0,394,0],[395,0,397,0],[398,0,400,0],[401,0,403,0],[404,0,406,0],[407,0,409,0],[410,0,412,0],[413,0,415,0],[416,0,418,0],[419,0,421,0],[422,0,424,0],[425,0,427,0],[428,0,430,0],[431,0,433,0],[434,0,436,0],[437,0,439,0],[440,0,442,0],[443,0,445,0],[446,0,448,0],[449,0,451,0],[452,0,454,0],[455,0,457,0],[458,0,460,0],[461,0,463,0],[464,0,466,0],[467,0,469,0],[470,0,472,0],[473,0,475,0],[476,0,478,0],[479,0,481,0],[482,0,484,0],[485,0,487,0],[488,0,490,0],[491,0,493,0],[494,0,496,0],[497,0,499,0],[500,0,502,0],[503,0,505,0],[506,0,508,0],[509,0,511,0],[512,0,514,0],[515,0,517,0],[518,0,520,0],[521,0,523,0],[524,0,526,0],[527,0,529,0],[530,0,532,0],[533,0,535,0],[536,0,538,0],[539,0,541,0],[542,0,544,0],[545,0,547,0],[548,0,550,0],[551,0,553,0],[554,0,556,0],[557,0,559,0],[560,0,562,0],[581,0,583,0],[584,0,586,0],[587,0,589,0],[563,0,565,0],[566,0,568,0],[569,0,571,0],[572,0,574,0],[575,0,577,0],[578,0,580,0]]}
["инструкция к опроснику"]
["Уважаемый тестируемый!"]
["Перед Вами ряд вопросов, которые помогут определить некоторые свойства вашей личности. Здесь не может быть ответов \"правильных\" или "]
["\"неправильных\". Люди различны и каждый может высказывать свое мнение. Старайтесь отвечать искренне и точно. Отвечая на каждый вопрос,"]
["Вы должны выбрать один из предлагаемых ответов, тот, который в наибольшей степени соответствует Вашим взглядам, Вашему мнению о себе."]
["Когда будете отвечать на вопросы, все время помните четыре следующих правила:"]
["1. Не нужно много времени тратить на обдумывание ответов. "]
["Давайте тот ответ, который первым приходит Вам в голову."]
[]
["2. Старайтесь не прибегать слишком часто к промежуточным, "]
["неопределенным ответам типа \"не знаю\", \"нечто среднее\" и т.п."]
["Более 18 выбранных  Вами промежуточных вариантов ответов - тест не пройден."]
[]
["3. Обязательно отвечайте на все вопросы подряд, ничего не пропуская. "]
[]
["4. Отвечайте честно и искренне. "]
["Не старайтесь произвести хорошее впечатление своими ответами, они должны "]
["соответствовать действительности."]
[]
["Полученная информация конфиденциальна. "]
[]
[]
[]
[]
[]
["Фамилия И.О:"]
["Ваш пол:",null,"мужской",null,{"$f":"IF(SUM(D27:D28)=1,\" \",\"введите один ответ\")","v":"введите один ответ"}]
[null,null,"женский"]
["Ваш возраст: лет",null,null,null,{"$f":"IF(ISBLANK(D29),\"введите Ваш возраст\",\" \")","v":"введите Ваш возраст"}]
["1. Я хорошо понял инструкцию, которую только что прочитал: ","a","да",null,{"$f":"IF(SUM(D30:D32)=1,\" \",\"введите один ответ\")","v":"введите один ответ"}]
[null,"b","не уверен"]
[null,"c","нет"]
["2. Я готов отвечать на каждый вопрос так искренне, как только возможно:","a","да",null,{"$f":"IF(SUM(D33:D35)=1,\" \",\"введите один ответ\")","v":"введите один ответ"}]
[null,"b","не уверен"]
[null,"c","нет"]
["3. Я бы предпочел время от времени жить в доме, который находится:","a","в обжитом пригороде",null,{"$f":"IF(SUM(D36:D38)=1,\" \",\"введите один ответ\")","v":"введите один ответ"}]
[null,"b","нечто среднее"]
[null,"c","одиноко в глухом лесу"]
["4. Я чувствую в себе достаточно сил, чтобы справиться со своими трудностями:","a","всегда",null,{"$f":"IF(SUM(D39:D41)=1,\" \",\"введите один ответ\")","v":"введите один ответ"}]
[null,"b","обычно"]
[null,"c","редко"]
["5. Я чувствую некоторое беспокойство при виде диких животных, даже если они находятся в прочных клетках:","a","верно",null,{"$f":"IF(SUM(D42:D44)=1,\" \",\"введите один ответ\")","v":"введите один ответ"}]
[null,"b","не уверен"]
[null,"c","неверно"]
["6. Я воздерживаюсь от критики людей и их высказываний: ","a","да",null,{"$f":"IF(SUM(D45:D47)=1,\" \",\"введите один ответ\")","v":"введите один ответ"}]
[null,"b","иногда"]
[null,"c","нет"]
["7. Я делаю саркастические (язвительные) замечания по поводу людей, если они этого, по-моему, заслуживают: ","a","обычно",null,{"$f":"IF(SUM(D48:D50)=1,\" \",\"введите один ответ\")","v":"введите один ответ"}]
[null,"b","иногда"]
[null,"c","никогда"]
["8. Мне больше нравится классическая, чем эстрадная музыка:","a","верно",null,{"$f":"IF(SUM(D51:D53)=1,\" \",\"введите один ответ\")","v":"введите один ответ"}]
[null,"b","не уверен"]
[null,"c","неверно"]
["9. Если бы я увидел дерущихся соседских детей, то я:","a","дал бы им возможность договориться самим",null,{"$f":"IF(SUM(D54:D56)=1,\" \",\"введите один ответ\")","v":"введите один ответ"}]
[null,"b","не уверен"]
[null,"c","рассудил бы их"]
["10. При общении с людьми я:","a","с готовностью вступаю в разговор",null,{"$f":"IF(SUM(D57:D59)=1,\" \",\"введите один ответ\")","v":"введите один ответ"}]
[null,"b","нечто среднее"]
[null,"c","предпочитаю спокойно оставаться в стороне"]
["11. По-моему, интереснее быть:","a","инженером-строителем",null,{"$f":"IF(SUM(D60:D62)=1,\" \",\"введите один ответ\")","v":"введите один ответ"}]
[null,"b","не уверен"]
[null,"c","драматургом"]
["12. Я остановился бы на улице скорее, чтобы посмотреть на работу художника, чем слушать, как ссорятся люди:","a","верно",null,{"$f":"IF(SUM(D63:D65)=1,\" \",\"введите один ответ\")","v":"введите один ответ"}]
[null,"b","не уверен"]
[null,"c","неверно"]
["13. Обычно я могу ладить с самодовольными людьми, несмотря на то, что они хвастаются или слишком много о себе воображают:","a","да",null,{"$f":"IF(SUM(D66:D68)=1,\" \",\"введите один ответ\")","v":"введите один ответ"}]
[null,"b","нечто среднее"]
[null,"c","нет"]
["14. По лицу человека всегда можно заметить, что он нечестный:","a","да",null,{"$f":"IF(SUM(D69:D71)=1,\" \",\"введите один ответ\")","v":"введите один ответ"}]
[null,"b","не уверен"]
[null,"c","нет"]
["15. Было бы хорошо, если бы отпуск (каникулы) был более продолжителен и каждый был бы обязан его использовать:","a","согласен",null,{"$f":"IF(SUM(D72:D74)=1,\" \",\"введите один ответ\")","v":"введите один ответ"}]
[null,"b","не уверен"]
[null,"c","не согласен"]
["16. Я предпочел бы работу с возможно большим, но не постоянным заработком, чем работу со скромным, но постоянным окладом:","a","согласен",null,{"$f":"IF(SUM(D75:D77)=1,\" \",\"введите один ответ\")","v":"введите один ответ"}]
[null,"b","не уверен"]
[null,"c","не согласен"]
["17. Говорю о своих чувствах:","a","только если это необходимо",null,{"$f":"IF(SUM(D78:D80)=1,\" \",\"введите один ответ\")","v":"введите один ответ"}]
[null,"b","нечто среднее"]
[null,"c","охотно, когда представится возможность"]
["18. Время от времени у меня возникает чувство неопределенной опасности или внезапного страха по непонятным причинам:","a","да",null,{"$f":"IF(SUM(D81:D83)=1,\" \",\"введите один ответ\")","v":"введите один ответ"}]
[null,"b","нечто среднее"]
[null,"c","нет"]
["19. Когда меня неправильно критикуют за что-то, в чем я не виноват, я:","a","не испытываю чувства вины",null,{"$f":"IF(SUM(D84:D86)=1,\" \",\"введите один ответ\")","v":"введите один ответ"}]
[null,"b","нечто среднее"]
[null,"c","все же чувствую себя немного виноватым"]
["20. За деньги можно купить почти все:","a","да",null,{"$f":"IF(SUM(D87:D89)=1,\" \",\"введите один ответ\")","v":"введите один ответ"}]
[null,"b","не уверен"]
[null,"c","нет"]
["21. Моим решением руководит больше:","a","сердце",null,{"$f":"IF(SUM(D90:D92)=1,\" \",\"введите один ответ\")","v":"введите один ответ"}]
[null,"b","сердце и разум в равной степени"]
[null,"c","разум"]
["22. Большинство людей были бы больше счастливы, если бы они были ближе друг к другу и поступали так же, как все:","a","да",null,{"$f":"IF(SUM(D93:D95)=1,\" \",\"введите один ответ\")","v":"введите один ответ"}]
[null,"b","не уверен"]
[null,"c","нет"]
["23. Иногда меня в детстве предупреждали о том, что в моем голосе и манерах слишком проявляется возбуждение:","a","да",null,{"$f":"IF(SUM(D96:D98)=1,\" \",\"введите один ответ\")","v":"введите один ответ"}]
[null,"b","нечто среднее"]
[null,"c","нет"]
["24. При разговоре я предпочитаю:","a","высказывать свои мысли так, как они приходят мне в голову",null,{"$f":"IF(SUM(D99:D101)=1,\" \",\"введите один ответ\")","v":"введите один ответ"}]
[null,"b","нечто среднее"]
[null,"c","сначала сформулировать получше свои мысли"]
["25. После того, как меня что-то сильно рассердит, я довольно быстро успокаиваюсь:","a","да",null,{"$f":"IF(SUM(D102:D104)=1,\" \",\"введите один ответ\")","v":"введите один ответ"}]
[null,"b","нечто среднее"]
[null,"c","нет"]
["26. При одинаковом рабочем времени и заработке было бы интереснее работать:","a","плотником или поваром",null,{"$f":"IF(SUM(D105:D107)=1,\" \",\"введите один ответ\")","v":"введите один ответ"}]
[null,"b","не уверен"]
[null,"c","официантом в хорошем ресторане"]
["27. На общественные должности меня выбирали:","a","очень редко",null,{"$f":"IF(SUM(D108:D110)=1,\" \",\"введите один ответ\")","v":"введите один ответ"}]
[null,"b","иногда"]
[null,"c","много раз"]
["28. «Лопата» относится к «копать», как «нож» относится к:","a","острый",null,{"$f":"IF(SUM(D111:D113)=1,\" \",\"введите один ответ\")","v":"введите один ответ"}]
[null,"b","резать"]
[null,"c","указывать"]
["29. Иногда я не могу заснуть, потому что какая-нибудь мысль не выходит из головы:","a","верно",null,{"$f":"IF(SUM(D114:D116)=1,\" \",\"введите один ответ\")","v":"введите один ответ"}]
[null,"b","не уверен"]
[null,"c","неверно"]
["30. В своей жизни я почти всегда достигаю поставленных целей:","a","верно",null,{"$f":"IF(SUM(D117:D119)=1,\" \",\"введите один ответ\")","v":"введите один ответ"}]
[null,"b","не уверен"]
[null,"c","неверно"]
["31. Устаревший закон следует изменить:","a","только после глубокого основательного обсуждения",null,{"$f":"IF(SUM(D120:D122)=1,\" \",\"введите один ответ\")","v":"введите один ответ"}]
[null,"b","не уверен"]
[null,"c","как можно скорее"]
["32. Я чувствую себя «не в своей тарелке», когда мне приходится работать над чем-нибудь, что требует быстрых действий, результаты которых могут повлиять на других людей:","a","верно",null,{"$f":"IF(SUM(D123:D125)=1,\" \",\"введите один ответ\")","v":"введите один ответ"}]
[null,"b","нечто среднее"]
[null,"c","неверно"]
["33. Большинство знакомых считают меня интересным рассказчиком:","a","да",null,{"$f":"IF(SUM(D126:D128)=1,\" \",\"введите один ответ\")","v":"введите один ответ"}]
[null,"b","не уверен"]
[null,"c","нет"]
["34. Когда я вижу неряшливых, неопрятных людей, я:","a","принимаю их такими, как они есть",null,{"$f":"IF(SUM(D129:D131)=1,\" \",\"введите один ответ\")","v":"введите один ответ"}]
[null,"b","нечто среднее"]
[null,"c","испытываю отвращение и возмущение"]
["35. Я чувствую себя немного не по себе, если неожиданно оказываюсь в центре внимания группы людей:","a","да",null,{"$f":"IF(SUM(D132:D134)=1,\" \",\"введите один ответ\")","v":"введите один ответ"}]
[null,"b","нечто среднее"]
[null,"c","нет"]
["36. Я всегда рад оказаться среди людей, например, в гостях, на танцах, на какой-либо коллективной встрече:","a","да",null,{"$f":"IF(SUM(D135:D137)=1,\" \",\"введите один ответ\")","v":"введите один ответ"}]
[null,"b","нечто среднее"]
[null,"c","нет"]
["37. В школе я предпочитал (или предпочитаю):","a","заниматься музыкой",null,{"$f":"IF(SUM(D138:D140)=1,\" \",\"введите один ответ\")","v":"введите один ответ"}]
[null,"b","нечто среднее"]
[null,"c","выпиливать и мастерить что-либо"]
["38. Если меня назначают руководителем чего-либо, настаиваю на том, чтобы мои указания выполнялись, иначе я отказываюсь от этой работы:","a","да",null,{"$f":"IF(SUM(D141:D143)=1,\" \",\"введите один ответ\")","v":"введите один ответ"}]
[null,"b","иногда"]
[null,"c","нет"]
["39. Важнее, чтобы родители:","a","помогали детям развивать свои чувства",null,{"$f":"IF(SUM(D144:D146)=1,\" \",\"введите один ответ\")","v":"введите один ответ"}]
[null,"b","нечто среднее"]
[null,"c","обучали детей сдерживать свои чувства"]
["40. Участвуя в групповой деятельности, я бы предпочел:","a","постараться улучшить организацию работы",null,{"$f":"IF(SUM(D147:D149)=1,\" \",\"введите один ответ\")","v":"введите один ответ"}]
[null,"b","нечто среднее"]
[null,"c","следить за результатами и соблюдением правил"]
["41. Время от времени у меня возникает потребность в интересной физической деятельности:","a","да",null,{"$f":"IF(SUM(D150:D152)=1,\" \",\"введите один ответ\")","v":"введите один ответ"}]
[null,"b","нечто среднее"]
[null,"c","нет"]
["42. Я предпочел бы скорее общаться с вежливыми людьми, чем с грубоватыми и любящими возражать:","a","да",null,{"$f":"IF(SUM(D153:D155)=1,\" \",\"введите один ответ\")","v":"введите один ответ"}]
[null,"b","нечто среднее"]
[null,"c","нет"]
["43. Я чувствую себя очень униженным, когда меня критикуют в присутствии группы людей:","a","верно",null,{"$f":"IF(SUM(D156:D158)=1,\" \",\"введите один ответ\")","v":"введите один ответ"}]
[null,"b","нечто среднее"]
[null,"c","неверно"]
["44. Если меня вызывает начальство, то я:","a","пользуюсь случаем, чтобы попросить о чем-то нужном мне",null,{"$f":"IF(SUM(D159:D161)=1,\" \",\"введите один ответ\")","v":"введите один ответ"}]
[null,"b","нечто среднее"]
[null,"c","боюсь, что это связано с какой-нибудь оплошностью в моей работе"]
["45. В наше время требуется:","a","больше спокойных солидных людей",null,{"$f":"IF(SUM(D162:D164)=1,\" \",\"введите один ответ\")","v":"введите один ответ"}]
[null,"b","не уверен"]
[null,"c","больше «идеалистов», планирующих лучшее будущее"]
["46. При чтении я сразу замечаю, когда автор произведения хочет меня в чем-то убедить:","a","да",null,{"$f":"IF(SUM(D165:D167)=1,\" \",\"введите один ответ\")","v":"введите один ответ"}]
[null,"b","не уверен"]
[null,"c","нет"]
["47. В юности я принимал участие в нескольких спортивных мероприятиях:","a","иногда",null,{"$f":"IF(SUM(D168:D170)=1,\" \",\"введите один ответ\")","v":"введите один ответ"}]
[null,"b","довольно часто"]
[null,"c","многократно"]
["48. Я поддерживаю порядок в моей комнате, все вещи всегда лежат на своих местах:","a","да",null,{"$f":"IF(SUM(D171:D173)=1,\" \",\"введите один ответ\")","v":"введите один ответ"}]
[null,"b","нечто среднее"]
[null,"c","нет"]
["49. Иногда у меня возникает чувство напряжения и беспокойства, когда я вспоминаю, что произошло в течение дня:","a","да",null,{"$f":"IF(SUM(D174:D176)=1,\" \",\"введите один ответ\")","v":"введите один ответ"}]
[null,"b","нечто среднее"]
[null,"c","нет"]
["50. Иногда я сомневаюсь, действительно ли люди, с которыми я разговариваю, интересуются тем, что я говорю:","a","да",null,{"$f":"IF(SUM(D177:D179)=1,\" \",\"введите один ответ\")","v":"введите один ответ"}]
[null,"b","не уверен"]
[null,"c","нет"]
["51. Если бы пришлось выбирать, то я предпочел бы быть:","a","лесником",null,{"$f":"IF(SUM(D180:D182)=1,\" \",\"введите один ответ\")","v":"введите один ответ"}]
[null,"b","неопределенно"]
[null,"c","учителем средней школы"]
["52. На праздники и дни рождения я:","a","люблю делать подарки",null,{"$f":"IF(SUM(D183:D185)=1,\" \",\"введите один ответ\")","v":"введите один ответ"}]
[null,"b","неопределенно"]
[null,"c","считаю, что делать подарки – довольно неприятная вещь"]
["53. «Усталый» относится к работе, как «гордый» к:","a","улыбке",null,{"$f":"IF(SUM(D186:D188)=1,\" \",\"введите один ответ\")","v":"введите один ответ"}]
[null,"b","успеху"]
[null,"c","счастью"]
["54. Какой из следующих предметов по существу отличается от двух других:","a","свеча",null,{"$f":"IF(SUM(D189:D191)=1,\" \",\"введите один ответ\")","v":"введите один ответ"}]
[null,"b","луна"]
[null,"c","электрический свет"]
["55. Друзья меня подводили:","a","редко",null,{"$f":"IF(SUM(D192:D194)=1,\" \",\"введите один ответ\")","v":"введите один ответ"}]
[null,"b","иногда"]
[null,"c","довольно часто"]
["56. У меня есть качества, по которым я определенно выше большинства людей:","a","да",null,{"$f":"IF(SUM(D195:D197)=1,\" \",\"введите один ответ\")","v":"введите один ответ"}]
[null,"b","не уверен"]
[null,"c","нет"]
["57. Когда я расстроен, я стараюсь скрыть свои чувства от других:","a","верно",null,{"$f":"IF(SUM(D198:D200)=1,\" \",\"введите один ответ\")","v":"введите один ответ"}]
[null,"b","нечто среднее"]
[null,"c","неверно"]
["58. Я склонен посещать зрелищные мероприятия и развлечения:","a","чаще, чем раз в неделю (то есть чаще, чем большинство)",null,{"$f":"IF(SUM(D201:D203)=1,\" \",\"введите один ответ\")","v":"введите один ответ"}]
[null,"b","примерно раз в неделю (то есть  как большинство)"]
[null,"c","реже, чем раз в неделю (то есть реже, чем большинство)"]
["59. Я считаю, что возможность вести себя непринужденно важнее, чем хорошие манеры и уважение к существующим правилам поведения:","a","верно",null,{"$f":"IF(SUM(D204:D206)=1,\" \",\"введите один ответ\")","v":"введите один ответ"}]
[null,"b","нечто среднее"]
[null,"c","неверно"]
["60. Обычно я молчу в присутствии старших по возрасту, опыту и положению:","a","да",null,{"$f":"IF(SUM(D207:D209)=1,\" \",\"введите один ответ\")","v":"введите один ответ"}]
[null,"b","нечто среднее"]
[null,"c","нет"]
["61. Мне трудно говорить или декламировать перед большой группой людей:","a","да",null,{"$f":"IF(SUM(D210:D212)=1,\" \",\"введите один ответ\")","v":"введите один ответ"}]
[null,"b","нечто среднее"]
[null,"c","нет"]
["62. У меня хорошее чувство ориентировки в незнакомом месте (мне легко сказать, где север – восток – юг – запад):","a","да",null,{"$f":"IF(SUM(D213:D215)=1,\" \",\"введите один ответ\")","v":"введите один ответ"}]
[null,"b","нечто среднее"]
[null,"c","нет"]
["63. Если кто-нибудь рассердится на меня, то я:","a","постараюсь его успокоить",null,{"$f":"IF(SUM(D216:D218)=1,\" \",\"введите один ответ\")","v":"введите один ответ"}]
[null,"b","нечто среднее"]
[null,"c","раздражаюсь"]
["64. Встречаясь с несправедливостью, я скорее склонен забыть об этом, чем реагировать:","a","верно",null,{"$f":"IF(SUM(D219:D221)=1,\" \",\"введите один ответ\")","v":"введите один ответ"}]
[null,"b","нечто среднее"]
[null,"c","неверно"]
["65. Из моей памяти часто выпадают несущественные тривиальные вещи, например, названия улиц, магазинов","a","да",null,{"$f":"IF(SUM(D222:D224)=1,\" \",\"введите один ответ\")","v":"введите один ответ"}]
[null,"b","нечто среднее"]
[null,"c","нет"]
["66. Мне бы понравилась жизнь ветеринара, лечение и операции на животных:","a","да",null,{"$f":"IF(SUM(D225:D227)=1,\" \",\"введите один ответ\")","v":"введите один ответ"}]
[null,"b","не уверен"]
[null,"c","нет"]
["67. Я ем со вкусом, не всегда так аккуратно и тщательно, как  другие  люди:","a","да ",null,{"$f":"IF(SUM(D228:D230)=1,\" \",\"введите один ответ\")","v":"введите один ответ"}]
[null,"b","не уверен "]
[null,"c","нет"]
["68. Бывают времена, когда у меня нет настроения видеть кого бы то ни было:","a","очень редко ",null,{"$f":"IF(SUM(D231:D233)=1,\" \",\"введите один ответ\")","v":"введите один ответ"}]
[null,"b","нечто среднее "]
[null,"c","довольно часто"]
["69. Иногда меня предупреждают о том, что в моем голосе и манерах слишком проявляется возбуждение:","a","да ",null,{"$f":"IF(SUM(D234:D236)=1,\" \",\"введите один ответ\")","v":"введите один ответ"}]
[null,"b","нечто среднее "]
[null,"c","нет"]
["70. В юности, если я расходился во мнении с родителями, то я:","a","оставался при своем мнении ",null,{"$f":"IF(SUM(D237:D239)=1,\" \",\"введите один ответ\")","v":"введите один ответ"}]
[null,"b","нечто среднее"]
[null,"c","соглашался с их авторитетом"]
["71. Я предпочел бы заниматься самостоятельной работой, а не совместной с другими:","a","да ",null,{"$f":"IF(SUM(D240:D242)=1,\" \",\"введите один ответ\")","v":"введите один ответ"}]
[null,"b","не уверен "]
[null,"c","нет"]
["72. Мне бы больше понравилась спокойная жизнь, чем слава и шумный успех:","a","верно ",null,{"$f":"IF(SUM(D243:D245)=1,\" \",\"введите один ответ\")","v":"введите один ответ"}]
[null,"b","не уверен "]
[null,"c","неверно"]
["73. В большинстве случаев я чувствую себя зрелым человеком:","a","верно ",null,{"$f":"IF(SUM(D246:D248)=1,\" \",\"введите один ответ\")","v":"введите один ответ"}]
[null,"b","не уверен "]
[null,"c","неверно"]
["74. Замечания в мой адрес, которые позволяют себе некоторые люди, меня больше расстраивают, чем помогают:","a","часто ",null,{"$f":"IF(SUM(D249:D251)=1,\" \",\"введите один ответ\")","v":"введите один ответ"}]
[null,"b","иногда "]
[null,"c","никогда"]
["75. Я всегда способен управлять проявлением своих чувств:","a","да ",null,{"$f":"IF(SUM(D252:D254)=1,\" \",\"введите один ответ\")","v":"введите один ответ"}]
[null,"b","нечто среднее "]
[null,"c","нет"]
["76. Начиная работу над полезным изобретением, я бы предпочел;","a","разрабатывать его в лаборатории ",null,{"$f":"IF(SUM(D255:D257)=1,\" \",\"введите один ответ\")","v":"введите один ответ"}]
[null,"b","нечто среднее"]
[null,"c","заниматься самостоятельно"]
["77. «Удивление» относится к «странный», как «страх» относится к:","a","«смелый» ",null,{"$f":"IF(SUM(D258:D260)=1,\" \",\"введите один ответ\")","v":"введите один ответ"}]
[null,"b","«тревожный» "]
[null,"c","«ужасный»"]
["78. Которая из последующих дробей отличается от двух других:","a","3/7",null,{"$f":"IF(SUM(D261:D263)=1,\" \",\"введите один ответ\")","v":"введите один ответ"}]
[null,"b","3/9"]
[null,"c","3/11"]
["79. Кажется, некоторые люди игнорируют и избегают меня, хотя я не знаю почему:","a","верно ",null,{"$f":"IF(SUM(D264:D266)=1,\" \",\"введите один ответ\")","v":"введите один ответ"}]
[null,"b","не уверен "]
[null,"c","не верно"]
["80. Отношения ко мне людей не соответствуют моим добрым намерениям:","a","часто ",null,{"$f":"IF(SUM(D267:D269)=1,\" \",\"введите один ответ\")","v":"введите один ответ"}]
[null,"b","иногда "]
[null,"c","никогда"]
["81. Употребление нецензурных выражений вызывает у меня возмущение, даже если не присутствуют лица другого пола:","a","да ",null,{"$f":"IF(SUM(D270:D272)=1,\" \",\"введите один ответ\")","v":"введите один ответ"}]
[null,"b","нечто среднее "]
[null,"c","нет"]
["82. У меня определенно меньше друзей, чем у большинства людей:","a","да ",null,{"$f":"IF(SUM(D273:D275)=1,\" \",\"введите один ответ\")","v":"введите один ответ"}]
[null,"b","нечто среднее "]
[null,"c","нет"]
["83. Я бы не хотел находиться в таком месте, где нет таких людей, с которыми можно поговорить:","a","верно ",null,{"$f":"IF(SUM(D276:D278)=1,\" \",\"введите один ответ\")","v":"введите один ответ"}]
[null,"b","нечто среднее "]
[null,"c","нет"]
["84. Люди иногда считают меня небрежным, хотя и думают, что я приятный человек:","a","да ",null,{"$f":"IF(SUM(D279:D281)=1,\" \",\"введите один ответ\")","v":"введите один ответ"}]
[null,"b","не уверен "]
[null,"c","нет"]
["85. Волнение перед выступлением в присутствии многих людей я испытывал:","a","довольно часто ",null,{"$f":"IF(SUM(D282:D284)=1,\" \",\"введите один ответ\")","v":"введите один ответ"}]
[null,"b","иногда "]
[null,"c","почти никогда"]
["86. Когда я нахожусь в большой группе людей, то я предпочитаю молчать и предоставляю слово другим:","a","да ",null,{"$f":"IF(SUM(D285:D287)=1,\" \",\"введите один ответ\")","v":"введите один ответ"}]
[null,"b","нечто среднее "]
[null,"c","нет"]
["87. Я предпочитаю читать:","a","реалистические описания военных и политических сражений",null,{"$f":"IF(SUM(D288:D290)=1,\" \",\"введите один ответ\")","v":"введите один ответ"}]
[null,"b","нечто среднее"]
[null,"c","роман, где много чувств и воображения"]
["88. Когда люди пытаются мною командовать, то я поступаю как раз наоборот:","a","да ",null,{"$f":"IF(SUM(D291:D293)=1,\" \",\"введите один ответ\")","v":"введите один ответ"}]
[null,"b","нечто среднее "]
[null,"c","нет"]
["89. Начальник или члены моей семьи критикуют меня только тогда, когда к этому действительно есть повод:","a","верно ",null,{"$f":"IF(SUM(D294:D296)=1,\" \",\"введите один ответ\")","v":"введите один ответ"}]
[null,"b","нечто среднее "]
[null,"c","неверно"]
["90. На улицах или в магазинах мне не нравится, когда некоторые люди пристально разглядывают других:","a","да ",null,{"$f":"IF(SUM(D297:D299)=1,\" \",\"введите один ответ\")","v":"введите один ответ"}]
[null,"b","нечто среднее "]
[null,"c","нет"]
["91. Во время длительной поездки я бы предпочел:","a","читать что-нибудь серьезное, но интересное",null,{"$f":"IF(SUM(D300:D302)=1,\" \",\"введите один ответ\")","v":"введите один ответ"}]
[null,"b","неопределенно"]
[null,"c","провести время, беседуя с кем-нибудь из пассажиров"]
["92. В ситуациях, которые могут стать опасными, я громко разговариваю, хотя это выглядит невежливо и нарушает спокойствие:","a","да ",null,{"$f":"IF(SUM(D303:D305)=1,\" \",\"введите один ответ\")","v":"введите один ответ"}]
[null,"b","не уверен "]
[null,"c","нет"]
["93. Если знакомые плохо обращаются со мной и показывают свою неприязнь, то:","a","меня это совершенно не трогает ",null,{"$f":"IF(SUM(D306:D308)=1,\" \",\"введите один ответ\")","v":"введите один ответ"}]
[null,"b","нечто среднее"]
[null,"c","я расстраиваюсь"]
["94. Я смущаюсь, когда меня хвалят или говорят мне комплименты:","a","да ",null,{"$f":"IF(SUM(D309:D311)=1,\" \",\"введите один ответ\")","v":"введите один ответ"}]
[null,"b","нечто среднее "]
[null,"c","нет"]
["95. Я бы предпочел иметь работу:","a","с постоянным окладом ",null,{"$f":"IF(SUM(D312:D314)=1,\" \",\"введите один ответ\")","v":"введите один ответ"}]
[null,"b","нечто среднее "]
[null,"c","с большим окладом, который бы зависел от моей способности показать людям, чего я стою"]
["96. Чтобы быть информированным, я предпочитаю получать сведения:","a","в общении с людьми ",null,{"$f":"IF(SUM(D315:D317)=1,\" \",\"введите один ответ\")","v":"введите один ответ"}]
[null,"b","нечто среднее "]
[null,"c","из литературы"]
["97. Мне нравится принимать активное участие в общественной работе:","a","да ",null,{"$f":"IF(SUM(D318:D320)=1,\" \",\"введите один ответ\")","v":"введите один ответ"}]
[null,"b","нечто среднее "]
[null,"c","нет"]
["98. При выполнении задания я удовлетворяюсь только тогда, когда должное внимание будет уделено всем мелочам:","a","да ",null,{"$f":"IF(SUM(D321:D323)=1,\" \",\"введите один ответ\")","v":"введите один ответ"}]
[null,"b","нечто среднее "]
[null,"c","нет"]
["99. Даже самые незначительные неудачи иногда меня слишком раздражают:","a","да ",null,{"$f":"IF(SUM(D324:D326)=1,\" \",\"введите один ответ\")","v":"введите один ответ"}]
[null,"b","не уверен "]
[null,"c","нет"]
["100. Сон у меня всегда крепкий, я  никогда  не  хожу  и  не разговариваю  во  сне :","a","да ",null,{"$f":"IF(SUM(D327:D329)=1,\" \",\"введите один ответ\")","v":"введите один ответ"}]
[null,"b","не уверен "]
[null,"c","нет"]
["101. Для меня интереснее работа, при которой:","a","нужно разговаривать с людьми ",null,{"$f":"IF(SUM(D330:D332)=1,\" \",\"введите один ответ\")","v":"введите один ответ"}]
[null,"b","нечто среднее"]
[null,"c","нужно заниматься счетами и записями"]
["102. «Размер» так относится к «длине», как «нечестный» к:","a","«тюрьма» ",null,{"$f":"IF(SUM(D333:D335)=1,\" \",\"введите один ответ\")","v":"введите один ответ"}]
[null,"b","«нарушение» "]
[null,"c","«кража»"]
["103. «АБ» так относится к «ГВ», как «СР» относится к:","a","«ПО» ",null,{"$f":"IF(SUM(D336:D338)=1,\" \",\"введите один ответ\")","v":"введите один ответ"}]
[null,"b","«ОП» "]
[null,"c","«ТУ»"]
["104. Когда люди ведут себя неразумно, то я:","a","молчу ",null,{"$f":"IF(SUM(D339:D341)=1,\" \",\"введите один ответ\")","v":"введите один ответ"}]
[null,"b","не уверен "]
[null,"c","высказываю свое презрение"]
["105. Если кто-нибудь громко разговаривает, когда я слушаю музыку:","a","могу сосредоточиться на музыке, не отвлекаться",null,{"$f":"IF(SUM(D342:D344)=1,\" \",\"введите один ответ\")","v":"введите один ответ"}]
[null,"b","нечто среднее "]
[null,"c","чувствую, что это портит мне удовольствие и раздражает"]
["106. Меня лучше характеризовать как:","a","вежливого и спокойного ",null,{"$f":"IF(SUM(D345:D347)=1,\" \",\"введите один ответ\")","v":"введите один ответ"}]
[null,"b","нечто среднее "]
[null,"c","энергичного"]
["107. В общественных мероприятиях я принимаю участие только тогда, когда это нужно, а в иных случаях избегаю их:","a","да ",null,{"$f":"IF(SUM(D348:D350)=1,\" \",\"введите один ответ\")","v":"введите один ответ"}]
[null,"b","не уверен "]
[null,"c","нет"]
["108. Быть осторожным и не ждать хорошего лучше, чем быть оптимистом и всегда ждать успеха:","a","верно ",null,{"$f":"IF(SUM(D351:D353)=1,\" \",\"введите один ответ\")","v":"введите один ответ"}]
[null,"b","не уверен "]
[null,"c","не верно"]
["109. Думая о трудностях в своей работе, я:","a","стараюсь планировать заранее, прежде чем встретить трудности ",null,{"$f":"IF(SUM(D354:D356)=1,\" \",\"введите один ответ\")","v":"введите один ответ"}]
[null,"b","нечто среднее "]
[null,"c","считаю, что справлюсь с трудностями по мере того, как они возникнут"]
["110. Мне легко вступить в контакт с людьми во время различных общественных мероприятий:","a","верно ",null,{"$f":"IF(SUM(D357:D359)=1,\" \",\"введите один ответ\")","v":"введите один ответ"}]
[null,"b","не уверен "]
[null,"c","неверно"]
["111. Когда требуется много дипломатии и умения убедить, чтобы пробудить людей что-либо сделать, обычно об этом просят меня:","a","верно ",null,{"$f":"IF(SUM(D360:D362)=1,\" \",\"введите один ответ\")","v":"введите один ответ"}]
[null,"b","не уверен "]
[null,"c","неверно"]
["112. Интересно быть:","a","консультантом, помогающим молодым людям выбирать профессию ",null,{"$f":"IF(SUM(D363:D365)=1,\" \",\"введите один ответ\")","v":"введите один ответ"}]
[null,"b","нечто среднее "]
[null,"c","руководителем технического предприятия"]
["113. Если я уверен, что человек несправедлив или ведет себя эгоистично, я указываю на это, даже если это связано с неприятностями:","a","да ",null,{"$f":"IF(SUM(D366:D368)=1,\" \",\"введите один ответ\")","v":"введите один ответ"}]
[null,"b","нечто среднее "]
[null,"c","нет"]
["114. Иногда я говорю глупости ради шутки, чтобы удивить людей и посмотреть, что они на это скажут:","a","да ",null,{"$f":"IF(SUM(D369:D371)=1,\" \",\"введите один ответ\")","v":"введите один ответ"}]
[null,"b","не уверен "]
[null,"c","нет"]
["115. Мне бы понравилось быть газетным критиком в разделе драмы, театра, концертов:","a","да ",null,{"$f":"IF(SUM(D372:D374)=1,\" \",\"введите один ответ\")","v":"введите один ответ"}]
[null,"b","не уверен "]
[null,"c","нет"]
["116. У меня никогда не бывает потребности что-нибудь рисовать или вертеть в руках, ерзать на месте, когда приходится долго сидеть на собрании:","a","верно ",null,{"$f":"IF(SUM(D375:D377)=1,\" \",\"введите один ответ\")","v":"введите один ответ"}]
[null,"b","не уверен "]
[null,"c","неверно"]
["117. Если кто-нибудь говорит мне что-то неправильное, то я скорее подумаю:","a","«он – лжец» ",null,{"$f":"IF(SUM(D378:D380)=1,\" \",\"введите один ответ\")","v":"введите один ответ"}]
[null,"b","не уверен "]
[null,"c","«по-видимому, он плохо информирован»"]
["118. Я чувствую, что мне угрожает какое-то наказание, даже когда я ничего плохого не сделал:","a","часто ",null,{"$f":"IF(SUM(D381:D383)=1,\" \",\"введите один ответ\")","v":"введите один ответ"}]
[null,"b","иногда "]
[null,"c","никогда"]
["119. Мнение о том, что болезнь также часто бывает от психических, как и от физических факторов, сильно преувеличена:","a","да ",null,{"$f":"IF(SUM(D384:D386)=1,\" \",\"введите один ответ\")","v":"введите один ответ"}]
[null,"b","не уверен "]
[null,"c","нет"]
["120. Торжественность и величие традиционных церемоний следует сохранить:","a","да ",null,{"$f":"IF(SUM(D387:D389)=1,\" \",\"введите один ответ\")","v":"введите один ответ"}]
[null,"b","не уверен "]
[null,"c","нет"]
["121. Мысль о том, что люди подумают, будто я веду себя необычно или странно, меня беспокоит:","a","очень ",null,{"$f":"IF(SUM(D390:D392)=1,\" \",\"введите один ответ\")","v":"введите один ответ"}]
[null,"b","не уверен "]
[null,"c","совсем не беспокоит"]
["122. Выполняя какое-либо дело, я бы предпочел работать: ","a","в составе коллектива ",null,{"$f":"IF(SUM(D393:D395)=1,\" \",\"введите один ответ\")","v":"введите один ответ"}]
[null,"b","не уверен "]
[null,"c","самостоятельно"]
["123. У меня бывают периоды, когда мне трудно избавиться от чувства жалости к себе:","a","часто ",null,{"$f":"IF(SUM(D396:D398)=1,\" \",\"введите один ответ\")","v":"введите один ответ"}]
[null,"b","иногда "]
[null,"c","никогда"]
["124. Часто я слишком быстро начинаю сердиться на людей:","a","да ",null,{"$f":"IF(SUM(D399:D401)=1,\" \",\"введите один ответ\")","v":"введите один ответ"}]
[null,"b","не уверен "]
[null,"c","нет"]
["125. Я всегда могу без труда изменить свои старые привычки и не возвращаться к прежнему:","a","да ",null,{"$f":"IF(SUM(D402:D404)=1,\" \",\"введите один ответ\")","v":"введите один ответ"}]
[null,"b","не уверен "]
[null,"c","нет"]
["126. Если бы зарплата была одинаковой, то я предпочел бы быть:","a","адвокатом ",null,{"$f":"IF(SUM(D405:D407)=1,\" \",\"введите один ответ\")","v":"введите один ответ"}]
[null,"b","не уверен "]
[null,"c","пилотом или капитаном судна"]
["127. «Лучшее» так относится к «наихудшее», как «медленное» к:","a","«быстрое» ",null,{"$f":"IF(SUM(D408:D410)=1,\" \",\"введите один ответ\")","v":"введите один ответ"}]
[null,"b","«лучшее» "]
[null,"c","«быстрейшее»"]
["128. Каким из приведенных ниже сочетаний следует продолжить буквенный ряд РООООРРОООРРР…?","a","ОРРР ",null,{"$f":"IF(SUM(D411:D413)=1,\" \",\"введите один ответ\")","v":"введите один ответ"}]
[null,"b","ООРР "]
[null,"c","РООО"]
["129. Когда приходит время осуществлять то, что я планировал и на что надеялся, я обнаруживаю, что уже пропало желание делать это:","a","верно ",null,{"$f":"IF(SUM(D414:D416)=1,\" \",\"введите один ответ\")","v":"введите один ответ"}]
[null,"b","нечто среднее "]
[null,"c","неверно"]
["130. Большей частью я могу продолжать работу тщательно, не обращая внимания на шум, создаваемый другим:","a","да ",null,{"$f":"IF(SUM(D417:D419)=1,\" \",\"введите один ответ\")","v":"введите один ответ"}]
[null,"b","не уверен "]
[null,"c","нет"]
["131. Иногда я говорю посторонним вещи, кажущиеся мне важными, не зависимо от того, спрашивают ли они об этом:","a","да ",null,{"$f":"IF(SUM(D420:D422)=1,\" \",\"введите один ответ\")","v":"введите один ответ"}]
[null,"b","не уверен "]
[null,"c","нет"]
["132. Много свободного времени я провожу в разговорах с друзьями о прошлых развлечениях, от которых я получал удовольствие:","a","да ",null,{"$f":"IF(SUM(D423:D425)=1,\" \",\"введите один ответ\")","v":"введите один ответ"}]
[null,"b","не уверен "]
[null,"c","нет"]
["133. Мне нравится устраивать какие-нибудь смелые, рискованные выходки «смеха ради»:","a","да ",null,{"$f":"IF(SUM(D426:D428)=1,\" \",\"введите один ответ\")","v":"введите один ответ"}]
[null,"b","не уверен "]
[null,"c","нет"]
["134. Вид неубранной комнаты очень раздражает меня:","a","да ",null,{"$f":"IF(SUM(D429:D431)=1,\" \",\"введите один ответ\")","v":"введите один ответ"}]
[null,"b","нечто среднее "]
[null,"c","нет"]
["135. Я считаю себя общительным, открытым человеком:","a","да ",null,{"$f":"IF(SUM(D432:D434)=1,\" \",\"введите один ответ\")","v":"введите один ответ"}]
[null,"b","нечто среднее "]
[null,"c","нет"]
["136. В общении я:","a","свободно проявляю свои чувства ",null,{"$f":"IF(SUM(D435:D437)=1,\" \",\"введите один ответ\")","v":"введите один ответ"}]
[null,"b","нечто среднее"]
[null,"c","держу свои переживания при себе"]
["137. Я люблю музыку:","a","легкую, живую ",null,{"$f":"IF(SUM(D438:D440)=1,\" \",\"введите один ответ\")","v":"введите один ответ"}]
[null,"b","нечто среднее "]
[null,"c","чувствительную"]
["138. Красота поэмы восхищает меня больше, чем красота хорошо сделанного оружия:","a","да ",null,{"$f":"IF(SUM(D441:D443)=1,\" \",\"введите один ответ\")","v":"введите один ответ"}]
[null,"b","не уверен "]
[null,"c","нет"]
["139. Если мое удачное замечание остается незамеченным окружающими, то я:","a","смирюсь с этим ",null,{"$f":"IF(SUM(D444:D446)=1,\" \",\"введите один ответ\")","v":"введите один ответ"}]
[null,"b","нечто среднее"]
[null,"c","даю людям возможность услышать его еще раз"]
["140. Мне бы понравилось работать фотокорреспондентом:","a","да ",null,{"$f":"IF(SUM(D447:D449)=1,\" \",\"введите один ответ\")","v":"введите один ответ"}]
[null,"b","не уверен "]
[null,"c","нет"]
["141. Нужно быть осторожным в общении с незнакомыми, так как можно, например, заразиться:","a","да ",null,{"$f":"IF(SUM(D450:D452)=1,\" \",\"введите один ответ\")","v":"введите один ответ"}]
[null,"b","не уверен "]
[null,"c","нет"]
["142. При поездке за границу я бы предпочел быть под руководством экскурсовода, чем самому планировать маршрут:","a","да ",null,{"$f":"IF(SUM(D453:D455)=1,\" \",\"введите один ответ\")","v":"введите один ответ"}]
[null,"b","не уверен "]
[null,"c","нет"]
["143. Меня справедливо считают упорным и трудолюбивым, но не слишком преуспевающим человеком:","a","да ",null,{"$f":"IF(SUM(D456:D458)=1,\" \",\"введите один ответ\")","v":"введите один ответ"}]
[null,"b","не уверен "]
[null,"c","нет"]
["144. Если люди пользуются моим хорошим отношением в своих интересах, то я не возмущаюсь этим и вскоре об этом забываю:","a","верно ",null,{"$f":"IF(SUM(D459:D461)=1,\" \",\"введите один ответ\")","v":"введите один ответ"}]
[null,"b","нечто среднее "]
[null,"c","не верно"]
["145. Если при обсуждении какого-либо вопроса среди участников возникает ожесточенный спор, то я предпочитаю:","a","увидеть, кто же «победит» ",null,{"$f":"IF(SUM(D462:D464)=1,\" \",\"введите один ответ\")","v":"введите один ответ"}]
[null,"b","нечто среднее"]
[null,"c","чтобы спор разрешился мирно"]
["146. Я предпочитаю планировать что-либо самостоятельно без вмешательства и предложений со стороны других:","a","да ",null,{"$f":"IF(SUM(D465:D467)=1,\" \",\"введите один ответ\")","v":"введите один ответ"}]
[null,"b","нечто среднее "]
[null,"c","нет"]
["147. Иногда чувство зависти влияет на мои действия:","a","да ",null,{"$f":"IF(SUM(D468:D470)=1,\" \",\"введите один ответ\")","v":"введите один ответ"}]
[null,"b","не уверен "]
[null,"c","нет"]
["148. Я твердо верю, что начальник может быть не всегда прав, но он всегда имеет право быть начальником:","a","да ",null,{"$f":"IF(SUM(D471:D473)=1,\" \",\"введите один ответ\")","v":"введите один ответ"}]
[null,"b","не уверен "]
[null,"c","нет"]
["149. Когда я думаю обо всем, что еще предстоит сделать, у меня появляется чувство напряженности:","a","да ",null,{"$f":"IF(SUM(D474:D476)=1,\" \",\"введите один ответ\")","v":"введите один ответ"}]
[null,"b","иногда "]
[null,"c","нет"]
["150. Когда зрители мне что-либо кричат во время игры, меня это не трогает:","a","верно ",null,{"$f":"IF(SUM(D477:D479)=1,\" \",\"введите один ответ\")","v":"введите один ответ"}]
[null,"b","нечто среднее "]
[null,"c","не верно"]
["151. Интереснее быть:","a","художником ",null,{"$f":"IF(SUM(D480:D482)=1,\" \",\"введите один ответ\")","v":"введите один ответ"}]
[null,"b","не уверен"]
[null,"c","организатором культурных развлечений"]
["152. Которое из следующих слов не относится к двум другим? ","a","любые ",null,{"$f":"IF(SUM(D483:D485)=1,\" \",\"введите один ответ\")","v":"введите один ответ"}]
[null,"b","некоторые "]
[null,"c","большинство"]
["153. «Пламя» так относится к «жар», как «роза» относится к:","a","«шип» ",null,{"$f":"IF(SUM(D486:D488)=1,\" \",\"введите один ответ\")","v":"введите один ответ"}]
[null,"b","«красивые лепестки» "]
[null,"c","«аромат»"]
["154. У меня бывают яркие сновидения, мешающие мне спать:","a","часто ",null,{"$f":"IF(SUM(D489:D491)=1,\" \",\"введите один ответ\")","v":"введите один ответ"}]
[null,"b","иногда "]
[null,"c","практически никогда"]
["155. Если на пути к успеху стоят серьезные препятствия, я все-таки предпочитаю рискнуть:","a","да ",null,{"$f":"IF(SUM(D492:D494)=1,\" \",\"введите один ответ\")","v":"введите один ответ"}]
[null,"b","нечто среднее "]
[null,"c","нет"]
["156. Когда я нахожусь в группе приступающих к какой-то работе, то само собой получается, что я оказываюсь во главе их:","a","да ",null,{"$f":"IF(SUM(D495:D497)=1,\" \",\"введите один ответ\")","v":"введите один ответ"}]
[null,"b","нечто среднее "]
[null,"c","нет"]
["157. Мне больше нравится в одежде спокойная корректность, чем бросающаяся в глаза индивидуальность:","a","верно ",null,{"$f":"IF(SUM(D498:D500)=1,\" \",\"введите один ответ\")","v":"введите один ответ"}]
[null,"b","не уверен "]
[null,"c","не верно"]
["158. Мне больше нравится провести вечер за спокойным любимым занятием, чем в оживленной компании:","a","верно ",null,{"$f":"IF(SUM(D501:D503)=1,\" \",\"введите один ответ\")","v":"введите один ответ"}]
[null,"b","не уверен "]
[null,"c","не верно"]
["159. Я не обращаю внимания на доброжелательные советы других, даже когда эти советы могли бы быть полезными:","a","иногда ",null,{"$f":"IF(SUM(D504:D506)=1,\" \",\"введите один ответ\")","v":"введите один ответ"}]
[null,"b","почти никогда "]
[null,"c","никогда"]
["160. В своих поступках я всегда стараюсь придерживаться общепринятых правил поведения:","a","да ",null,{"$f":"IF(SUM(D507:D509)=1,\" \",\"введите один ответ\")","v":"введите один ответ"}]
[null,"b","нечто среднее "]
[null,"c","нет"]
["161. Мне не очень нравится, когда смотрят, как я работаю:","a","да ",null,{"$f":"IF(SUM(D510:D512)=1,\" \",\"введите один ответ\")","v":"введите один ответ"}]
[null,"b","нечто среднее "]
[null,"c","нет"]
["162. Иногда приходится применять силу, потому что не всегда возможно добиться результата с помощью утверждения:","a","верно ",null,{"$f":"IF(SUM(D513:D515)=1,\" \",\"введите один ответ\")","v":"введите один ответ"}]
[null,"b","нечто среднее "]
[null,"c","не верно"]
["163. В школе я предпочитал (предпочитаю):","a","русский язык и литературу ",null,{"$f":"IF(SUM(D516:D518)=1,\" \",\"введите один ответ\")","v":"введите один ответ"}]
[null,"b","не уверен"]
[null,"c","математику или арифметику"]
["164. Меня иногда огорчало, что обо мне за глаза отзывались неодобрительно без всяких к этому причин:","a","да ",null,{"$f":"IF(SUM(D519:D521)=1,\" \",\"введите один ответ\")","v":"введите один ответ"}]
[null,"b","не уверен "]
[null,"c","нет"]
["165. Разговор с простыми людьми, которые всегда придерживаются общепринятых правил и традиций:","a","часто вполне интересен и содержателен",null,{"$f":"IF(SUM(D522:D524)=1,\" \",\"введите один ответ\")","v":"введите один ответ"}]
[null,"b","нечто среднее"]
[null,"c","раздражает меня, потому что ограничивается мелочами"]
["166. Некоторые вещи настолько раздражают меня, что предпочитаю вообще не говорить на эти темы:","a","да ",null,{"$f":"IF(SUM(D525:D527)=1,\" \",\"введите один ответ\")","v":"введите один ответ"}]
[null,"b","нечто среднее "]
[null,"c","нет"]
["167. В воспитании важнее:","a","относиться к ребенку с достаточной любовью ",null,{"$f":"IF(SUM(D528:D530)=1,\" \",\"введите один ответ\")","v":"введите один ответ"}]
[null,"b","нечто среднее"]
[null,"c","выработать нужные привычки и отношение к  жизни"]
["168. Люди считают меня положительным, спокойным человеком, которого не трогают превратности судьбы:","a","да ",null,{"$f":"IF(SUM(D531:D533)=1,\" \",\"введите один ответ\")","v":"введите один ответ"}]
[null,"b","нечто среднее "]
[null,"c","нет"]
["169. Я считаю, что общество должно руководствоваться разумом и отбросить старые привычки или ненужные традиции:","a","да ",null,{"$f":"IF(SUM(D534:D536)=1,\" \",\"введите один ответ\")","v":"введите один ответ"}]
[null,"b","не уверен "]
[null,"c","нет"]
["170. Думаю, что в современном мире важнее разрешить:","a","вопросы нравственности ",null,{"$f":"IF(SUM(D537:D539)=1,\" \",\"введите один ответ\")","v":"введите один ответ"}]
[null,"b","не уверен"]
[null,"c","разногласия между странами мира"]
["171. Я лучше усваиваю материал:","a","читая хорошо написанную книгу ",null,{"$f":"IF(SUM(D540:D542)=1,\" \",\"введите один ответ\")","v":"введите один ответ"}]
[null,"b","нечто среднее"]
[null,"c","участвуя в обсуждении вопроса"]
["172. Я предпочитаю идти своим путем вместо того, чтобы действовать в соответствии с принятыми правилами:","a","верно ",null,{"$f":"IF(SUM(D543:D545)=1,\" \",\"введите один ответ\")","v":"введите один ответ"}]
[null,"b","не уверен "]
[null,"c","не верно"]
["173. Прежде чем выдвигать какой-либо аргумент, я предпочитаю подождать, пока не буду убежден, что я прав:","a","всегда ",null,{"$f":"IF(SUM(D546:D548)=1,\" \",\"введите один ответ\")","v":"введите один ответ"}]
[null,"b","обычно "]
[null,"c","только если это целесообразно"]
["174. Мелочи иногда невыносимо «действуют мне на нервы», хотя я и понимаю, что они несущественны:","a","да ",null,{"$f":"IF(SUM(D549:D551)=1,\" \",\"введите один ответ\")","v":"введите один ответ"}]
[null,"b","нечто среднее "]
[null,"c","нет"]
["175. Под влиянием момента я редко говорю вещи, о которых потом очень сожалею:","a","верно ",null,{"$f":"IF(SUM(D552:D554)=1,\" \",\"введите один ответ\")","v":"введите один ответ"}]
[null,"b","не уверен "]
[null,"c","не верно"]
["176. Если бы меня попросили участвовать в шефской деятельности, то я бы:","a","согласился ",null,{"$f":"IF(SUM(D555:D557)=1,\" \",\"введите один ответ\")","v":"введите один ответ"}]
[null,"b","не уверен "]
[null,"c","вежливо сказал, что занят"]
["177. Которое из следующих слов не относится к двум другим?","a","широкий ",null,{"$f":"IF(SUM(D558:D560)=1,\" \",\"введите один ответ\")","v":"введите один ответ"}]
[null,"b","зигзагообразный "]
[null,"c","прямой"]
["178. «Скоро» так относится к «никогда», как «близко» к:","a","«нигде» ",null,{"$f":"IF(SUM(D561:D563)=1,\" \",\"введите один ответ\")","v":"введите один ответ"}]
[null,"b","«далеко» "]
[null,"c","«где-то»"]
["179. Если я где-то нарушил правила поведения, находясь в обществе, то я вскоре забываю об этом:","a","да ",null,{"$f":"IF(SUM(D564:D566)=1,\" \",\"введите один ответ\")","v":"введите один ответ"}]
[null,"b","нечто среднее "]
[null,"c","нет"]
["180. Меня считают человеком, которому обычно в голову приходят хорошие идеи, когда нужно разрешить какую-то проблему:","a","да ",null,{"$f":"IF(SUM(D567:D569)=1,\" \",\"введите один ответ\")","v":"введите один ответ"}]
[null,"b","не уверен "]
[null,"c","нет"]
["181. Я способен лучше проявить себя:","a","в трудных ситуациях, когда нужно сохранить самообладание",null,{"$f":"IF(SUM(D570:D572)=1,\" \",\"введите один ответ\")","v":"введите один ответ"}]
[null,"b","не уверен "]
[null,"c","когда требуется умение ладить с людьми"]
["182. Меня считают человеком полным энтузиазма:","a","да ",null,{"$f":"IF(SUM(D573:D575)=1,\" \",\"введите один ответ\")","v":"введите один ответ"}]
[null,"b","нечто среднее "]
[null,"c","нет"]
["183. Мне нравится работа, которая требует перемен, разнообразия, командировок, даже если она связана с некоторой опасностью:","a","да ",null,{"$f":"IF(SUM(D576:D578)=1,\" \",\"введите один ответ\")","v":"введите один ответ"}]
[null,"b","нечто среднее "]
[null,"c","нет"]
["184. Я довольно требовательный человек и всегда настаиваю на том, чтобы все делалось по возможности правильно:","a","верно ",null,{"$f":"IF(SUM(D579:D581)=1,\" \",\"введите один ответ\")","v":"введите один ответ"}]
[null,"b","нечто среднее "]
[null,"c","неверно"]
["185. Мне нравится работа, требующая добросовестного отношения, точных навыков и умений:","a","да ",null,{"$f":"IF(SUM(D582:D584)=1,\" \",\"введите один ответ\")","v":"введите один ответ"}]
[null,"b","нечто среднее "]
[null,"c","нет"]
["186. Я отношусь к типу энергичных людей, которые всегда заняты:","a","да ",null,{"$f":"IF(SUM(D585:D587)=1,\" \",\"введите один ответ\")","v":"введите один ответ"}]
[null,"b","не уверен "]
[null,"c","нет"]
["187. Я уверен в том, что не пропустил ни одного вопроса и на все вопросы ответил как следует:","a","да ",null,{"$f":"IF(SUM(D588:D590)=1,\" \",\"введите один ответ\")","v":"введите один ответ"}]
[null,"b","не уверен "]
[null,"c","нет"]

{"sheet":"результаты","index":1,"n_rows":42,"n_cols":57,"rows_kept":42,"cut":false,"hidden":false,"merged":[[3,0,3,44],[1,45,1,54],[2,45,2,54],[3,45,3,47],[3,48,3,50],[3,51,3,54],[32,46,32,52],[23,44,24,52],[23,53,24,53],[23,54,23,56],[25,44,25,45],[25,46,25,52],[26,46,26,52],[27,46,27,52],[28,46,28,52],[29,46,29,52],[30,46,30,52],[31,46,31,52],[39,46,39,52],[40,46,40,52],[41,46,41,52],[33,46,33,52],[34,46,34,52],[35,46,35,52],[36,46,36,52],[37,46,37,52],[38,46,38,52]]}
[]
[null,null,null,null,null,null,null,null,null,null,null,null,null,null,null,null,null,null,null,null,null,null,null,null,null,null,null,null,null,null,null,null,null,null,null,null,null,null,null,null,null,null,null,null,null,"Таблица перевода балов в стены"]
[]
["Заполнение первичнных данных с бланка",null,null,null,null,null,null,null,null,null,null,null,null,null,null,null,null,null,null,null,null,null,null,null,null,null,null,null,null,null,null,null,null,null,null,null,null,null,null,null,null,null,null,null,null,"Низкие",null,null,"Средние",null,null,"Высокие"]
["№","a","b","c","№","a","b","c","№","a","b","c","№","a","b","c","№","a","b","c","№","a","b","c","№","a","b","c","№","a","b","c","№","a","b","c","№","a","b","c","№","a","b","c",null,1,2,3,4,5,6,7,8,9,10]
[1,{"$f":"опросник!D30","v":0},{"$f":"опросник!D31","v":0},{"$f":"опросник!D32","v":0},18,null,null,null,35,null,null,null,52,null,null,null,69,null,null,null,86,null,null,null,103,null,null,null,120,null,null,null,137,null,null,null,154,null,null,null,171,null,null,null,"МД","0-2",3,4,5,6,7,8,9,10,"11-12"]
[2,{"$f":"опросник!D33","v":0},{"$f":"опросник!D34","v":0},{"$f":"опросник!D35","v":0},19,null,null,null,36,null,null,null,53,null,null,null,70,null,null,null,87,null,null,null,104,null,null,null,121,null,null,null,138,null,null,null,155,null,null,null,172,null,null,null,"A","0-4",5,6,7,8,"-",9,10,11,"12"]
[3,{"$f":"опросник!D36","v":0},{"$f":"опросник!D37","v":0},{"$f":"опросник!D38","v":0},20,null,null,null,37,null,null,null,54,null,null,null,71,null,null,null,88,null,null,null,105,null,null,null,122,null,null,null,139,null,null,null,156,null,null,null,173,null,null,null,"B","0-2","-",3,"-",4,"-",5,6,"-","7-8"]
[4,{"$f":"опросник!D39","v":0},{"$f":"опросник!D40","v":0},{"$f":"опросник!D41","v":0},21,null,null,null,38,null,null,null,55,null,null,null,72,null,null,null,89,null,null,null,106,null,null,null,123,null,null,null,140,null,null,null,157,null,null,null,174,null,null,null,"C","0-3",4,5,6,7,8,9,10,11,"12"]
[5,{"$f":"опросник!D42","v":0},{"$f":"опросник!D43","v":0},{"$f":"опросник!D44","v":0},22,null,null,null,39,null,null,null,56,null,null,null,73,null,null,null,90,null,null,null,107,null,null,null,124,null,null,null,141,null,null,null,158,null,null,null,175,null,null,null,"E","0-1",2,3,4,5,6,7,8,9,"10"]
[6,{"$f":"опросник!D45","v":0},{"$f":"опросник!D46","v":0},{"$f":"опросник!D47","v":0},23,null,null,null,40,null,null,null,57,null,null,null,74,null,null,null,91,null,null,null,108,null,null,null,125,null,null,null,142,null,null,null,159,null,null,null,176,null,null,null,"F","0-2","-",3,4,5,6,7,"-",8,"9-12"]
[7,{"$f":"опросник!D48","v":0},{"$f":"опросник!D49","v":0},{"$f":"опросник!D50","v":0},24,null,null,null,41,null,null,null,58,null,null,null,75,null,null,null,92,null,null,null,109,null,null,null,126,null,null,null,143,null,null,null,160,null,null,null,177,null,null,null,"G","0-3",4,5,6,7,8,9,10,11,"12"]
[8,{"$f":"опросник!D51","v":0},{"$f":"опросник!D52","v":0},{"$f":"опросник!D53","v":0},25,null,null,null,42,null,null,null,59,null,null,null,76,null,null,null,93,null,null,null,110,null,null,null,127,null,null,null,144,null,null,null,161,null,null,null,178,null,null,null,"H","0-3",4,5,6,7,8,9,10,11,"12"]
[9,{"$f":"опросник!D54","v":0},{"$f":"опросник!D55","v":0},{"$f":"опросник!D56","v":0},26,null,null,null,43,null,null,null,60,null,null,null,77,null,null,null,94,null,null,null,111,null,null,null,128,null,null,null,145,null,null,null,162,null,null,null,179,null,null,null,"I","0-3",4,5,6,7,8,9,10,11,"12"]
[10,{"$f":"опросник!D57","v":0},{"$f":"опросник!D58","v":0},{"$f":"опросник!D59","v":0},27,null,null,null,44,null,null,null,61,null,null,null,78,null,null,null,95,null,null,null,112,null,null,null,129,null,null,null,146,null,null,null,163,null,null,null,180,null,null,null,"L","0-1",2,"-",3,4,"-",5,6,7,"8-12"]
[11,{"$f":"опросник!D60","v":0},{"$f":"опросник!D61","v":0},{"$f":"опросник!D62","v":0},28,null,null,null,45,null,null,null,62,null,null,null,79,null,null,null,96,null,null,null,113,null,null,null,130,null,null,null,147,null,null,null,164,null,null,null,181,null,null,null,"M","0-3","-",4,5,6,7,8,9,10,"11-12"]
[12,{"$f":"опросник!D63","v":0},{"$f":"опросник!D64","v":0},{"$f":"опросник!D65","v":0},29,null,null,null,46,null,null,null,63,null,null,null,80,null,null,null,97,null,null,null,114,null,null,null,131,null,null,null,148,null,null,null,165,null,null,null,182,null,null,null,"N","0-1",2,3,4,5,6,7,8,9,"10-12"]
[13,{"$f":"опросник!D66","v":0},{"$f":"опросник!D67","v":0},{"$f":"опросник!D68","v":0},30,null,null,null,47,null,null,null,64,null,null,null,81,null,null,null,98,null,null,null,115,null,null,null,132,null,null,null,149,null,null,null,166,null,null,null,183,null,null,null,"O","0-1","2-3",4,5,6,7,8,9,10,"11-12"]
[14,{"$f":"опросник!D69","v":0},{"$f":"опросник!D70","v":0},{"$f":"опросник!D71","v":0},31,null,null,null,48,null,null,null,65,null,null,null,82,null,null,null,99,null,null,null,116,null,null,null,133,null,null,null,150,null,null,null,167,null,null,null,184,null,null,null,"Q1","0-4",5,6,"-",7,8,9,10,11,"12"]
[15,{"$f":"опросник!D72","v":0},{"$f":"опросник!D73","v":0},{"$f":"опросник!D74","v":0},32,null,null,null,49,null,null,null,66,null,null,null,83,null,null,null,100,null,null,null,117,null,null,null,134,null,null,null,151,null,null,null,168,null,null,null,185,null,null,null,"Q2","0-2",3,"-",4,5,6,7,8,9,"10-12"]
[16,{"$f":"опросник!D75","v":0},{"$f":"опросник!D76","v":0},{"$f":"опросник!D77","v":0},33,null,null,null,50,null,null,null,67,null,null,null,84,null,null,null,101,null,null,null,118,null,null,null,135,null,null,null,152,null,null,null,169,null,null,null,186,null,null,null,"Q3","0-2",3,4,5,6,7,8,9,10,"11-12"]
[17,{"$f":"опросник!D78","v":0},{"$f":"опросник!D79","v":0},{"$f":"опросник!D80","v":0},34,null,null,null,51,null,null,null,68,null,null,null,85,null,null,null,102,null,null,null,119,null,null,null,136,null,null,null,153,null,null,null,170,null,null,null,187,null,null,null,"Q4","0-1",2,3,4,5,"6-7",8,9,10,"11-12"]
[]
[null,null,null,null,null,null,null,null,null,null,null,null,null,null,null,null,null,null,null,null,null,null,null,null,null,null,null,null,null,null,null,null,null,null,null,null,null,null,null,null,null,null,null,null,"Факторы",null,null,null,null,null,null,null,null,"Баллы","Стены"]
[null,null,null,null,null,null,null,null,null,null,null,null,null,null,null,null,null,null,null,null,null,null,null,null,null,null,null,null,null,null,null,null,null,null,null,null,null,null,null,null,null,null,null,null,null,null,null,null,null,null,null,null,null,null,"Низкие","Средние","Высокие"]
[null,null,null,null,null,null,null,null,null,null,null,null,null,null,null,null,null,null,null,null,null,null,null,null,null,null,null,null,null,null,null,null,null,null,null,null,null,null,null,null,null,null,null,null,"МД",null,"Лживость - Правдивость",null,null,null,null,null,null,{"$f":"((BT26+CC26+CG26+CK26+CO26+CS26+CW26)+(BS26+CD26+CH26+CL26+CP26+CT26+CX26)*2)","v":0},{"$f":"IF(BB26<=2,$BH$5,IF(BB26=3,$BI$5,IF(BB26=4,$BJ$5,)))","v":0},{"$f":"IF(BB26=5,$BK$5,IF(BB26=6,$BL$5,IF(BB26=7,$BM$5,)))","v":0},{"$f":"IF(BB26=8,$BN$5,IF(BB26=9,$BO$5,IF(BB26=10,$BP$5,IF(BB26>=11,$BQ$5,))))","v":0}]
[null,null,null,null,null,null,null,null,null,null,null,null,null,null,null,null,null,null,null,null,null,null,null,null,null,null,null,null,null,null,null,null,null,null,null,null,null,null,null,null,null,null,null,null,1,"A","Общительность - Замкнутость",null,null,null,null,null,null,{"$f":"((BZ27+CB27+CH27+CJ27+CN27)*2+(BT27+CC27+CG27+CK27+CO27+CS27))","v":0},{"$f":"IF(BB27<=4,$BH$5,IF(BB27=5,$BI$5,IF(BB27=6,$BJ$5,)))","v":0},{"$f":"IF(BB27=7,$BK$5,IF(BB27=8,$BL$5,))","v":0},{"$f":"IF(BB27=9,$BN$5,IF(BB27=10,$BO$5,IF(BB27=11,$BP$5,IF(BB27>=12,$BQ$5,))))","v":0}]
[null,null,null,null,null,null,null,null,null,null,null,null,null,null,null,null,null,null,null,null,null,null,null,null,null,null,null,null,null,null,null,null,null,null,null,null,null,null,null,null,null,null,null,null,2,"B","Ограниченное мышление - сообразительность",null,null,null,null,null,null,{"$f":"BT28+CD28+CG28+CL28+CN28+CT28+CV27+CW28","v":0},{"$f":"IF(BB28<=2,$BH$5,IF(BB28=3,$BJ$5,))","v":0},{"$f":"IF(BB28=4,$BL$5,)","v":0},{"$f":"IF(BB28=5,$BN$5,IF(BB28=6,$BO$5,IF(BB28>=7,$BQ$5,)))","v":0}]
[null,null,null,null,null,null,null,null,null,null,null,null,null,null,null,null,null,null,null,null,null,null,null,null,null,null,null,null,null,null,null,null,null,null,null,null,null,null,null,null,null,null,null,null,3,"C","Эмоциональная устойчивость",null,null,null,null,null,null,{"$f":"((BS29+CB29+CH29+CJ29+CP29+CT29)*2+(BT29+CC29+CG29+CK29+CO29+CS29))","v":0},{"$f":"IF(BB29<=3,$BH$5,IF(BB29=4,$BI$5,IF(BB29=5,$BJ$5,)))","v":0},{"$f":"IF(BB29=6,$BK$5,IF(BB29=7,$BL$5,IF(BB29=8,$BM$5,)))","v":0},{"$f":"IF(BB29=9,$BN$5,IF(BB29=10,$BO$5,IF(BB29=11,$BP$5,IF(BB29>=12,$BQ$5,))))","v":0}]
[null,null,null,null,null,null,null,null,null,null,null,null,null,null,null,null,null,null,null,null,null,null,null,null,null,null,null,null,null,null,null,null,null,null,null,null,null,null,null,null,null,null,null,null,4,"E","Независимость - Подчинение",null,null,null,null,null,null,{"$f":"((BZ30+CD30+CH30+CJ30+CP30+CR30+CT30)*2+(BT30+CC30+CG30+CK30+CO30+CS30))","v":0},{"$f":"IF(BB30<=1,$BH$5,IF(BB30=2,$BI$5,IF(BB30=3,$BJ$5,)))","v":0},{"$f":"IF(BB30=4,$BK$5,IF(BB30=5,$BL$5,IF(BB30=6,$BM$5,)))","v":0},{"$f":"IF(BB30=7,$BN$5,IF(BB30=8,$BO$5,IF(BB30=9,$BP$5,IF(BB30>=10,$BQ$5,))))","v":0}]
[null,null,null,null,null,null,null,null,null,null,null,null,null,null,null,null,null,null,null,null,null,null,null,null,null,null,null,null,null,null,null,null,null,null,null,null,null,null,null,null,null,null,null,null,5,"F","Озабоченность - Беспечность",null,null,null,null,null,null,{"$f":"((BS31+CB31+CH31+CJ31+CN31+CT31)*2+(BT31+CC31+CG31+CK31+CO31+CS31))","v":0},{"$f":"IF(BB31<=2,$BH$5,IF(BB31=3,$BJ$5,))","v":0},{"$f":"IF(BB31=4,$BK$5,IF(BB31=5,$BL$5,IF(BB31=6,$BM$5,)))","v":0},{"$f":"IF(BB31=7,$BN$5,IF(BB31=8,$BP$5,IF(BB31>=9,$BQ$5,)))","v":0}]
[null,null,null,null,null,null,null,null,null,null,null,null,null,null,null,null,null,null,null,null,null,null,null,null,null,null,null,null,null,null,null,null,null,null,null,null,null,null,null,null,null,null,null,null,6,"G","Выраженная сила \"Я\" - Безпринципность",null,null,null,null,null,null,{"$f":"((BS32+CD32+CF32+CL32+CN32+CT32)*2+(BT32+CC32+CG32+CK32+CO32+CS32))","v":0},{"$f":"IF(BB32<=3,$BH$5,IF(BB32=4,$BI$5,IF(BB32=5,$BJ$5,)))","v":0},{"$f":"IF(BB32=6,$BK$5,IF(BB32=7,$BL$5,IF(BB32=8,$BM$5,)))","v":0},{"$f":"IF(BB32=9,$BN$5,IF(BB32=10,$BO$5,IF(BB32=11,$BP$5,IF(BB32>=12,$BQ$5,))))","v":0}]
[null,null,null,null,null,null,null,null,null,null,null,null,null,null,null,null,null,null,null,null,null,null,null,null,null,null,null,null,null,null,null,null,null,null,null,null,null,null,null,null,null,null,null,null,7,"H","Смелость- Робость",null,null,null,null,null,null,{"$f":"((BS33+CD33+CH33+CJ33+CN33+CT33)*2+(BT33+CC33+CG33+CK33+CO33+CS33))","v":0},{"$f":"IF(BB33<=3,$BH$5,IF(BB33=4,$BI$5,IF(BB33=5,$BJ$5,)))","v":0},{"$f":"IF(BB33=6,$BK$5,IF(BB33=7,$BL$5,IF(BB33=8,$BM$5,)))","v":0},{"$f":"IF(BB33=9,$BN$5,IF(BB33=10,$BO$5,IF(BB33=11,$BP$5,IF(BB33>=12,$BQ$5,))))","v":0}]
[null,null,null,null,null,null,null,null,null,null,null,null,null,null,null,null,null,null,null,null,null,null,null,null,null,null,null,null,null,null,null,null,null,null,null,null,null,null,null,null,null,null,null,null,8,"I","Податливость - Жестокость",null,null,null,null,null,null,{"$f":"((BS34+CB34+CH34+CJ34+CP34+CT34)*2+(BT34+CC34+CG34+CK34+CO34+CS34))","v":0},{"$f":"IF(BB34<=3,$BH$5,IF(BB34=4,$BI$5,IF(BB34=5,$BJ$5,)))","v":0},{"$f":"IF(BB34=6,$BK$5,IF(BB34=7,$BL$5,IF(BB34=8,$BM$5,)))","v":0},{"$f":"IF(BB34=9,$BN$5,IF(BB34=10,$BO$5,IF(BB34=11,$BP$5,IF(BB34>=12,$BQ$5,))))","v":0}]
[null,null,null,null,null,null,null,null,null,null,null,null,null,null,null,null,null,null,null,null,null,null,null,null,null,null,null,null,null,null,null,null,null,null,null,null,null,null,null,null,null,null,null,null,9,"L","Подозрительность - Доверчивость",null,null,null,null,null,null,{"$f":"((BS35+CD35+CH35+CL35+CN35+CR35)*2+(BT35+CC35+CG35+CK35+CO35+CS35))","v":0},{"$f":"IF(BB35<=1,$BH$5,IF(BB35=2,$BI$5,))","v":0},{"$f":"IF(BB35=3,$BK$5,IF(BB35=4,$BL$5,))","v":0},{"$f":"IF(BB35=5,$BN$5,IF(BB35=6,$BO$5,IF(BB35=7,$BP$5,IF(BB35>=8,$BQ$5,))))","v":0}]
[null,null,null,null,null,null,null,null,null,null,null,null,null,null,null,null,null,null,null,null,null,null,null,null,null,null,null,null,null,null,null,null,null,null,null,null,null,null,null,null,null,null,null,null,10,"M","Непрактичность - Практичность",null,null,null,null,null,null,{"$f":"((BZ36+CD36+CF36+CJ36+CN36+CT36)*2+(BT36+CC36+CG36+CK36+CO36+CS36))","v":0},{"$f":"IF(BB36<=3,$BH$5,IF(BB36=4,$BJ$5,))","v":0},{"$f":"IF(BB36=5,$BK$5,IF(BB36=6,$BL$5,IF(BB36=7,$BM$5,)))","v":0},{"$f":"IF(BB36=8,$BN$5,IF(BB36=9,$BO$5,IF(BB36=10,$BP$5,IF(BB36>=11,$BQ$5,))))","v":0}]
[null,null,null,null,null,null,null,null,null,null,null,null,null,null,null,null,null,null,null,null,null,null,null,null,null,null,null,null,null,null,null,null,null,null,null,null,null,null,null,null,null,null,null,null,11,"N","Гибкость - Прямолинейность",null,null,null,null,null,null,{"$f":"((BZ37+CB37+CF37+CJ37+CP37+CT37)*2+(BT37+CC37+CG37+CK37+CO37+CS37))","v":0},{"$f":"IF(BB37<=1,$BH$5,IF(BB37=2,$BI$5,IF(BB37=3,$BJ$5,)))","v":0},{"$f":"IF(BB37=4,$BK$5,IF(BB37=5,$BL$5,IF(BB37=6,$BM$5,)))","v":0},{"$f":"IF(BB37=7,$BN$5,IF(BB37=8,$BO$5,IF(BB37=9,$BP$5,IF(BB37>=10,$BQ$5,))))","v":0}]
[null,null,null,null,null,null,null,null,null,null,null,null,null,null,null,null,null,null,null,null,null,null,null,null,null,null,null,null,null,null,null,null,null,null,null,null,null,null,null,null,null,null,null,null,12,"O","Треовжность - Спокойствие",null,null,null,null,null,null,{"$f":"((BZ38+CB38+CH38+CJ38+CP38+CR38)*2+(BT38+CC38+CG38+CK38+CO38+CS38))","v":0},{"$f":"IF(BB38<=1,$BH$5,IF(BB38=2,$BI$5,IF(BB38=3,$BI$5,IF(BB38=4,$BJ$5,))))","v":0},{"$f":"IF(BB38=5,$BK$5,IF(BB38=6,$BL$5,IF(BB38=7,$BM$5,)))","v":0},{"$f":"IF(BB38=8,$BN$5,IF(BB38=9,$BO$5,IF(BB38=10,$BP$5,IF(BB38>=11,$BQ$5,))))","v":0}]
[null,null,null,null,null,null,null,null,null,null,null,null,null,null,null,null,null,null,null,null,null,null,null,null,null,null,null,null,null,null,null,null,null,null,null,null,null,null,null,null,null,null,null,null,13,"Q1","Радикализм - Консерватизм",null,null,null,null,null,null,{"$f":"((BS39+CB39+CH39+CL39+CP39+CR39)*2+(BT39+CC39+CG39+CK39+CO39+CS39))","v":0},{"$f":"IF(BB39<=4,$BH$5,IF(BB39=5,$BI$5,IF(BB39=6,$BJ$5,)))","v":0},{"$f":"IF(BB39=7,$BL$5,IF(BB39=8,$BM$5,))","v":0},{"$f":"IF(BB39=9,$BN$5,IF(BB39=10,$BO$5,IF(BB39=11,$BP$5,IF(BB39>=12,$BQ$5,))))","v":0}]
[null,null,null,null,null,null,null,null,null,null,null,null,null,null,null,null,null,null,null,null,null,null,null,null,null,null,null,null,null,null,null,null,null,null,null,null,null,null,null,null,null,null,null,null,14,"Q2","Самостоятельность - Внушаемость",null,null,null,null,null,null,{"$f":"((BS40+CD40+CF40+CJ40+CP40+CT40)*2+(BT40+CC40+CG40+CK40+CO40+CS40))","v":0},{"$f":"IF(BB40<=2,$BH$5,IF(BB40=3,$BI$5,))","v":0},{"$f":"IF(BB40=4,$BK$5,IF(BB40=5,$BL$5,IF(BB40=6,$BM$5,)))","v":0},{"$f":"IF(BB40=7,$BN$5,IF(BB40=8,$BO$5,IF(BB40=9,$BP$5,IF(BB40>=10,$BQ$5,))))","v":0}]
[null,null,null,null,null,null,null,null,null,null,null,null,null,null,null,null,null,null,null,null,null,null,null,null,null,null,null,null,null,null,null,null,null,null,null,null,null,null,null,null,null,null,null,null,15,"Q3","Высокий самоконтроль - Низкий самоконтроль",null,null,null,null,null,null,{"$f":"((BS41+CB41+CF41+CL41+CP41+CT41)*2+(BT41+CC41+CG41+CK41+CO41+CS41))","v":0},{"$f":"IF(BB41<=2,$BH$5,IF(BB41=3,$BI$5,IF(BB41=4,$BJ$5,)))","v":0},{"$f":"IF(BB41=5,$BK$5,IF(BB41=6,$BL$5,IF(BB41=7,$BM$5,)))","v":0},{"$f":"IF(BB41=8,$BN$5,IF(BB41=9,$BO$5,IF(BB41=10,$BP$5,IF(BB41>=11,$BQ$5,))))","v":0}]
[null,null,null,null,null,null,null,null,null,null,null,null,null,null,null,null,null,null,null,null,null,null,null,null,null,null,null,null,null,null,null,null,null,null,null,null,null,null,null,null,null,null,null,null,16,"Q4","Напряженность - релаксация",null,null,null,null,null,null,{"$f":"((BS42+CD42+CH42+CJ42+CP42+CR42)*2+(BT42+CC42+CG42+CK42+CO42+CS42))","v":0},{"$f":"IF(BB42<=1,$BH$5,IF(BB42=2,$BI$5,IF(BB42=3,$BJ$5,)))","v":0},{"$f":"IF(BB42=4,$BK$5,IF(BB42=5,$BL$5,IF(BB42=6,$BM$5,IF(BB42=7,$BM$5,))))","v":0},{"$f":"IF(BB42=8,$BN$5,IF(BB42=9,$BO$5,IF(BB42=10,$BP$5,IF(BB42>=11,$BQ$5,))))","v":0}]

{"sheet":"Лист3","index":2,"n_rows":0,"n_cols":0,"rows_kept":0,"cut":false,"hidden":false,"merged":[]}